bitfinex/quotes_SOLUSD_20250518
["timestamp","ask_amount","ask_price","bid_price","bid_amount"]
[1747581789781,17.90185423,174.51,174.46,25.23161599]
[1747581790086,17.90185423,174.52,174.47,17.90185423]
[1747581791404,23.63152821,174.53,174.48,17.90185423]
[1747581792003,17.90185423,174.52,174.47,17.90185423]
[1747581792910,17.90185423,174.5,174.43,5.73289371]
[1747581793109,17.90185423,174.48,174.43,17.90185423]
[1747581794243,23.63298699,174.49,174.44,17.90185423]
[1747581794414,17.90185423,174.47,174.42,24.37005423]
[1747581794592,17.90185423,174.47,174.42,17.90185423]
[1747581794905,17.90185423,174.48,174.43,17.90185423]
[1747581795575,17.90185423,174.48,174.44,17.90185423]
[1747581795780,23.63298699,174.49,174.44,17.90185423]
[1747581796104,5.73073862,174.5,174.45,17.90185423]
[1747581796403,5.73073862,174.5,174.46,17.90185423]
[1747581796605,23.63259285,174.5,174.45,17.90185423]
[1747581796807,5.73073862,174.5,174.42,5.73324486]
[1747581796977,17.90185423,174.49,174.44,17.90185423]
[1747581797174,23.63259285,174.5,174.45,17.90185423]
[1747581798202,17.90185423,174.49,174.44,17.90185423]
[1747581799119,17.90185423,174.49,174.41,1.5978]
[1747581799120,17.90185423,174.48,174.41,1.5978]
[1747581799300,17.90185423,174.48,174.43,17.90185423]
[1747581799489,5.73073862,174.5,174.45,17.90185423]
[1747581799690,23.63259285,174.5,174.45,17.90185423]
[1747581800305,5.73073862,174.5,174.46,17.90185423]
[1747581800612,43.90185423,174.53,174.48,17.90185423]
[1747581800919,17.90185423,174.52,174.43,5.73281591]
[1747581801087,17.90185423,174.52,174.47,17.90185423]
[1747581801734,23.63186328,174.52,174.47,17.90185423]
[1747581802420,17.90185423,174.51,174.46,17.90185423]
[1747581803727,23.63251134,174.51,174.46,17.90185423]
[1747581803904,5.73065711,174.51,174.47,17.90185423]
[1747581806295,37.94185423,174.54,174.49,17.90185423]
[1747581807199,37.94185423,174.54,174.44,6.5645]
[1747581807200,17.90185423,174.53,174.48,17.90185423]
[1747581807426,23.63161007,174.53,174.48,17.90185423]
[1747581807807,5.72975584,174.53,174.49,17.90185423]
[1747581808622,17.90185423,174.54,174.49,17.90185423]
[1747581808825,31.72933788,174.55,174.51,17.90185423]
[1747581809040,49.63119211,174.55,174.5,17.90185423]
[1747581809931,17.90185423,174.54,174.49,17.90185423]
[1747581810105,17.90185423,174.52,174.47,17.90185423]
[1747581810609,17.90185423,174.53,174.47,17.90185423]
[1747581810811,17.90185423,174.52,174.47,17.90185423]
[1747581811532,23.63197633,174.52,174.47,17.90185423]
[1747581812714,23.6316268,174.53,174.48,17.90185423]
[1747581812929,5.72941725,174.54,174.5,17.90185423]
[1747581813449,49.63097204,174.55,174.5,17.90185423]
[1747581813654,5.72911781,174.55,174.51,17.90185423]
[1747581814031,5.72911781,174.55,174.5,17.90185423]
[1747581814441,17.90185423,174.54,174.49,17.90185423]
[1747581816050,5.72911781,174.55,174.49,17.90185423]
[1747581816239,23.63097204,174.55,174.5,17.90185423]
[1747581816440,5.72911781,174.55,174.5,17.90185423]
[1747581816942,50.18155232,174.56,174.51,17.90185423]
[1747581817151,26.55092834,174.56,174.53,17.90185423]
[1747581817750,26.55092834,174.56,174.52,17.90185423]
[1747581818544,26.55092834,174.56,174.53,17.90185423]
[1747581818835,32.27962136,174.56,174.52,17.90185423]
[1747581819834,50.18147559,174.56,174.51,17.90185423]
[1747581820031,17.90185423,174.55,174.5,17.90185423]
[1747581820665,23.63119993,174.54,174.49,17.90185423]
[1747581824763,23.63119993,174.54,174.49,23.6327933]
[1747581825065,5.7293457,174.54,174.5,17.90185423]
[1747581825866,23.63119993,174.54,174.49,17.90185423]
[1747581826563,17.90185423,174.51,174.46,17.90185423]
[1747581826960,17.90185423,174.51,174.44,12.29708165]
[1747581826961,5.73065902,174.5,174.44,12.29708165]
[1747581827270,5.73065902,174.5,174.46,17.90185423]
[1747581828138,23.63251325,174.5,174.45,17.90185423]
[1747581829043,5.73065902,174.5,174.45,17.90185423]
[1747581829566,17.90185423,174.52,174.47,17.90185423]
[1747581829765,5.72967398,174.53,174.48,17.90185423]
[1747581829949,49.63129234,174.54,174.49,17.90185423]
[1747581830447,5.72943811,174.54,174.49,17.90185423]
[1747581830872,23.63129234,174.54,174.49,17.90185423]
[1747581831642,23.63129234,174.54,174.44,40.33157532]
[1747581831643,17.90185423,174.53,174.48,17.90185423]
[1747581832061,23.63185652,174.52,174.45,5.73211016]
[1747581832258,23.63185652,174.52,174.47,17.90185423]
[1747581833444,17.90185423,174.51,174.46,17.90185423]
[1747581833641,5.73033064,174.51,174.47,17.90185423]
[1747581834068,23.63218487,174.51,174.46,17.90185423]
[1747581834868,17.90185423,174.5,174.43,5.73295878]
[1747581835177,17.90185423,174.5,174.45,17.90185423]
[1747581836564,17.90185423,174.5,174.42,27.5919]
[1747581836565,17.90185423,174.49,174.42,1.5919]
[1747581836881,5.73042672,174.51,174.42,7.32513557]
[1747581837176,5.73042672,174.51,174.47,17.90185423]
[1747581838078,43.65194293,174.52,174.47,17.90185423]
[1747581838579,23.63194293,174.52,174.47,17.90185423]
[1747581840177,23.63194293,174.52,174.43,5.73264005]
[1747581840370,17.90185423,174.51,174.46,17.90185423]
[1747581841283,5.7300887,174.52,174.47,17.90185423]
[1747581841475,23.63194293,174.52,174.46,17.90185423]
[1747581841982,23.63251325,174.5,174.45,17.90185423]
[1747581842557,23.63251325,174.5,174.42,7.32506465]
[1747581842762,23.63251325,174.5,174.45,17.90185423]
[1747581842962,23.63251325,174.5,174.42,1.5919]
[1747581843176,17.90185423,174.49,174.44,17.90185423]
[1747581844365,5.73131591,174.48,174.44,17.90185423]
[1747581844891,5.73106672,174.49,174.45,17.90185423]
[1747581845671,5.73106672,174.49,174.46,17.90185423]
[1747581846181,5.73070177,174.5,174.47,17.90185423]
[1747581846764,5.73070177,174.5,174.46,17.90185423]
[1747581847083,5.73070177,174.5,174.45,17.90185423]
[1747581847283,5.73070177,174.5,174.46,17.90185423]
[1747581850304,23.632556,174.5,174.45,17.90185423]
[1747581850588,26.0,174.43,174.34,17.90185423]
[1747581850773,17.90185423,174.4,174.34,17.90185423]
[1747581850982,17.90185423,174.4,174.35,17.90185423]
[1747581851177,26.0,174.43,174.35,17.90185423]
[1747581851370,17.90185423,174.41,174.32,1.5121]
[1747581851572,17.90185423,174.41,174.35,17.90185423]
[1747581851781,17.90185423,174.4,174.35,17.90185423]
[1747581852192,17.90185423,174.4,174.34,5.73576513]
[1747581852372,17.90185423,174.39,174.34,17.90185423]
[1747581852567,17.90185423,174.39,174.32,7.24859562]
[1747581852766,17.90185423,174.39,174.33,31.81426519]
[1747581852968,17.90185423,174.39,174.33,13.91241096]
[1747581853168,17.90185423,174.37,174.33,8.17619822]
[1747581853378,17.90185423,174.34,174.29,5.73756383]
[1747581853774,20.0,174.38,174.27,5.73822229]
[1747581853973,17.90185423,174.35,174.29,17.90185423]
[1747581854337,5.73493146,174.37,174.29,17.90185423]
[1747581854471,17.90185423,174.34,174.29,17.90185423]
[1747581855370,5.73493146,174.37,174.3,23.63908888]
[1747581855586,20.0,174.38,174.3,23.63908888]
[1747581855794,69.65627454,174.39,174.33,17.90185423]
[1747581856004,17.90185423,174.38,174.33,17.90185423]
[1747581856208,17.90185423,174.37,174.32,17.90185423]
[1747581856498,17.90185423,174.37,174.31,17.90185423]
[1747581856695,17.90185423,174.38,174.33,17.90185423]
[1747581857279,37.92185423,174.39,174.34,17.90185423]
[1747581857477,17.90185423,174.38,174.33,5.73599009]
[1747581857801,17.90185423,174.38,174.33,23.63784432]
[1747581857997,17.90185423,174.38,174.33,17.90185423]
[1747581858196,17.90185423,174.36,174.31,23.63868138]
[1747581858396,17.90185423,174.34,174.28,5.73787284]
[1747581858597,17.90185423,174.32,174.28,5.73787284]
[1747581858775,17.90185423,174.31,174.26,17.90185423]
[1747581859599,17.90185423,174.32,174.27,23.64007652]
[1747581860096,17.90185423,174.33,174.28,17.90185423]
[1747581860300,17.90185423,174.34,174.28,17.90185423]
[1747581860601,17.90185423,174.33,174.28,17.90185423]
[1747581861190,17.90185423,174.32,174.27,23.64007652]
[1747581861593,17.90185423,174.31,174.27,5.73822229]
[1747581862506,17.90185423,174.32,174.27,23.64007652]
[1747581863300,17.90185423,174.31,174.27,5.73822229]
[1747581863686,17.90185423,174.31,174.26,17.90185423]
[1747581863687,17.90185423,174.31,174.26,23.64035463]
[1747581864327,17.90185423,174.32,174.27,17.90185423]
[1747581864478,26.0,174.33,174.27,17.90185423]
[1747581864687,17.90185423,174.35,174.3,17.90185423]
[1747581865625,17.90185423,174.34,174.27,5.73822229]
[1747581865808,5.73568976,174.35,174.27,5.73822229]
[1747581866008,17.90185423,174.32,174.27,23.64007652]
[1747581867725,17.90185423,174.32,174.25,13.84871135]
[1747581867726,17.90185423,174.3,174.25,13.84871135]
[1747581868026,5.73672305,174.32,174.25,13.84871135]
[1747581868027,17.90185423,174.29,174.25,7.28431135]
[1747581868227,17.90185423,174.3,174.25,25.18616558]
[1747581868404,17.90185423,174.31,174.26,17.90185423]
[1747581869114,17.90185423,174.31,174.26,23.64019643]
[1747581870018,5.73658082,174.32,174.26,5.7383422]
[1747581870326,17.90185423,174.3,174.26,5.7383422]
[1747581871506,5.73658082,174.32,174.26,5.7383422]
[1747581871829,17.90185423,174.3,174.26,5.7383422]
[1747581872012,5.73658082,174.32,174.26,5.7383422]
[1747581872217,17.90185423,174.3,174.26,5.7383422]
[1747581873127,17.90185423,174.32,174.27,17.90185423]
[1747581873516,26.0,174.33,174.27,17.90185423]
[1747581873833,26.0,174.35,174.29,17.90185423]
[1747581874015,17.90185423,174.33,174.28,17.90185423]
[1747581874214,17.90185423,174.33,174.29,5.73756383]
[1747581874545,17.90185423,174.32,174.29,5.73756383]
[1747581875548,17.90185423,174.32,174.28,5.73789304]
[1747581875723,17.90185423,174.31,174.27,5.73818379]
[1747581877020,17.90185423,174.31,174.26,23.64030318]
[1747581880227,17.90185423,174.3,174.26,5.73844895]
[1747581880524,17.90185423,174.31,174.26,23.64030318]
[1747581881356,17.90185423,174.3,174.26,5.73844895]
[1747581882654,5.73633248,174.33,174.26,23.64030318]
[1747581882843,17.90185423,174.31,174.26,23.64030318]
[1747581883868,20.0,174.35,174.28,17.90185423]
[1747581884164,17.90185423,174.33,174.28,17.90185423]
[1747581884522,20.0,174.35,174.28,17.90185423]
[1747581884725,17.90185423,174.33,174.28,17.90185423]
[1747581884951,17.90185423,174.33,174.28,23.63945776]
[1747581885135,5.73596936,174.34,174.28,5.73760353]
[1747581885332,17.90185423,174.33,174.28,23.63945776]
[1747581886570,17.90185423,174.34,174.29,17.90185423]
[1747581886762,37.90185423,174.35,174.3,17.90185423]
[1747581886930,20.0,174.35,174.31,17.90185423]
[1747581887127,51.73469498,174.38,174.32,17.90185423]
[1747581887446,17.90185423,174.37,174.32,17.90185423]
[1747581887957,17.90185423,174.36,174.31,17.90185423]
[1747581888783,17.90185423,174.35,174.31,5.73680925]
[1747581890161,51.73469498,174.38,174.31,5.73680925]
[1747581890473,51.73469498,174.38,174.31,23.63866348]
[1747581890674,17.90185423,174.36,174.31,23.63866348]
[1747581891568,23.63716006,174.36,174.31,23.63866348]
[1747581892386,17.90185423,174.36,174.31,23.63866348]
[1747581893982,5.73469629,174.38,174.32,17.90185423]
[1747581894173,17.90185423,174.37,174.32,17.90185423]
[1747581894992,23.63689215,174.37,174.32,17.90185423]
[1747581895286,23.63689215,174.37,174.32,23.63840962]
[1747581895487,23.63689215,174.37,174.32,17.90185423]
[1747581895987,5.73503792,174.37,174.32,23.63839651]
[1747581896193,23.63689215,174.37,174.32,17.90185423]
[1747581896569,17.90185423,174.36,174.3,17.90185423]
[1747581896894,23.63761008,174.35,174.3,17.90185423]
[1747581897103,23.63761008,174.35,174.29,5.73728946]
[1747581897397,17.90185423,174.34,174.29,17.90185423]
[1747581897891,23.63761008,174.35,174.28,5.73779885]
[1747581898065,23.63761008,174.35,174.3,17.90185423]
[1747581900663,23.63761008,174.35,174.28,5.73789304]
[1747581900990,17.90185423,174.37,174.32,17.90185423]
[1747581901493,23.63645682,174.38,174.32,17.90185423]
[1747581901695,23.63645682,174.38,174.33,17.90185423]
[1747581902080,17.90185423,174.39,174.33,17.90185423]
[1747581902282,17.90185423,174.4,174.35,17.90185423]
[1747581903090,23.63583072,174.4,174.35,17.90185423]
[1747581903495,4.09587188,174.42,174.37,17.90185423]
[1747581903799,43.61482768,174.43,174.38,17.90185423]
[1747581903983,17.90185423,174.42,174.37,17.90185423]
[1747581904792,37.88185423,174.43,174.38,23.6364218]
[1747581904997,43.61485368,174.43,174.38,17.90185423]
[1747581905782,23.63485368,174.43,174.38,17.90185423]
[1747581905981,5.73299945,174.43,174.38,17.90185423]
[1747581906194,23.63485368,174.43,174.38,17.90185423]
[1747581906394,23.63485368,174.43,174.38,23.63645027]
[1747581906596,23.63485368,174.43,174.38,17.90185423]
[1747581907186,5.73299945,174.43,174.38,17.90185423]
[1747581907389,23.63485368,174.43,174.38,17.90185423]
[1747581907690,23.63485368,174.43,174.38,23.63644188]
[1747581907893,26.4779,174.47,174.39,17.90185423]
[1747581907894,23.6345402,174.44,174.39,17.90185423]
[1747581908901,17.90185423,174.43,174.37,23.63671253]
[1747581909079,17.90185423,174.41,174.36,19.46345423]
[1747581909909,5.73268597,174.44,174.37,17.90185423]
[1747581910205,5.73237543,174.45,174.39,17.90185423]
[1747581910391,23.63422966,174.45,174.4,17.90185423]
[1747581910995,19.98,174.48,174.4,17.90185423]
[1747581911203,17.90185423,174.45,174.4,17.90185423]
[1747581912202,43.61324311,174.48,174.43,17.90185423]
[1747581912375,17.90185423,174.49,174.43,17.90185423]
[1747581912579,5.73098744,174.49,174.42,17.90185423]
[1747581912779,17.90185423,174.47,174.42,17.90185423]
[1747581913375,5.73098744,174.49,174.42,17.90185423]
[1747581913575,17.90185423,174.47,174.42,17.90185423]
[1747581914177,17.90185423,174.48,174.43,17.90185423]
[1747581914602,17.90185423,174.48,174.43,23.63454996]
[1747581914807,17.90185423,174.49,174.44,17.90185423]
[1747581915301,5.73066639,174.5,174.44,17.90185423]
[1747581915505,17.90185423,174.49,174.44,17.90185423]
[1747581915693,17.90185423,174.48,174.43,17.90185423]
[1747581916684,17.90185423,174.48,174.43,23.63475993]
[1747581918181,23.63319478,174.48,174.43,17.90185423]
[1747581919019,17.90185423,174.47,174.42,23.63509517]
[1747581919783,17.90185423,174.44,174.36,7.7542]
[1747581919996,17.90185423,174.44,174.39,17.90185423]
[1747581920216,17.90185423,174.44,174.36,7.7542]
[1747581920510,17.90185423,174.45,174.4,17.90185423]
[1747581921412,17.90185423,174.44,174.39,17.90185423]
[1747581921621,17.90185423,174.45,174.4,17.90185423]
[1747581922930,26.0,174.49,174.42,17.90185423]
[1747581923102,23.63293576,174.49,174.44,17.90185423]
[1747581923612,17.90185423,174.48,174.43,17.90185423]
[1747581923822,17.90185423,174.49,174.44,17.90185423]
[1747581924913,19.94,174.51,174.4,17.90185423]
[1747581925099,17.90185423,174.5,174.45,17.90185423]
[1747581925412,17.90185423,174.49,174.44,17.90185423]
[1747581925814,17.90185423,174.48,174.43,17.90185423]
[1747581926110,17.90185423,174.46,174.41,17.90185423]
[1747581926320,17.90185423,174.46,174.4,5.73394495]
[1747581926321,17.90185423,174.45,174.39,5.7342335]
[1747581926496,17.90185423,174.45,174.4,17.90185423]
[1747581926900,17.90185423,174.45,174.4,23.63574038]
[1747581928520,31.73131591,174.48,174.41,17.90185423]
[1747581928713,17.90185423,174.46,174.41,17.90185423]
[1747581929719,23.63387796,174.46,174.41,17.90185423]
[1747581929930,17.90185423,174.46,174.41,23.63544875]
[1747581931629,17.90185423,174.48,174.42,17.90185423]
[1747581931825,23.63292602,174.49,174.44,17.90185423]
[1747581932122,17.90185423,174.5,174.45,17.90185423]
[1747581932333,17.90185423,174.49,174.44,17.90185423]
[1747581933099,17.90185423,174.49,174.41,5.73359452]
[1747581933100,17.90185423,174.48,174.43,17.90185423]
[1747581933818,17.90185423,174.45,174.39,86.4342086]
[1747581934023,17.90185423,174.44,174.39,104.33606283]
[1747581934205,17.90185423,174.45,174.4,17.90185423]
[1747581934405,17.90185423,174.44,174.39,23.63606283]
[1747581935026,17.90185423,174.44,174.39,17.90185423]
[1747581935224,23.63454754,174.44,174.39,17.90185423]
[1747581935535,17.90185423,174.44,174.39,23.63608619]
[1747581935722,17.90185423,174.46,174.41,17.90185423]
[1747581936951,23.63415574,174.45,174.4,17.90185423]
[1747581937114,17.90185423,174.44,174.39,17.90185423]
[1747581938025,23.63458308,174.44,174.39,17.90185423]
[1747581938230,17.90185423,174.44,174.39,23.63606749]
[1747581938435,23.63451277,174.44,174.39,17.90185423]
[1747581938726,17.90185423,174.44,174.39,17.90185423]
[1747581939029,17.90185423,174.43,174.38,17.90185423]
[1747581939235,23.63466524,174.44,174.39,17.90185423]
[1747581939617,17.90185423,174.43,174.37,43.90185423]
[1747581940133,23.63514023,174.43,174.38,17.90185423]
[1747581940919,23.63514023,174.43,174.39,17.90185423]
[1747581941234,5.733286,174.43,174.39,17.90185423]
[1747581941434,23.63514023,174.43,174.38,17.90185423]
[1747581941632,23.63514023,174.43,174.37,17.90185423]
[1747581941842,17.90185423,174.41,174.36,19.46345423]
[1747581942208,23.63549593,174.41,174.36,17.90185423]
[1747581942727,17.90185423,174.41,174.36,23.63697868]
[1747581943113,17.90185423,174.42,174.37,17.90185423]
[1747581943508,5.73230151,174.45,174.4,17.90185423]
[1747581943735,17.90185423,174.45,174.4,17.90185423]
[1747581943909,113.60613949,174.5,174.44,17.90185423]
[1747581944114,23.63257843,174.5,174.45,17.90185423]
[1747581944317,17.90185423,174.49,174.44,17.90185423]
[1747581944523,17.90185423,174.47,174.42,17.90185423]
[1747581945017,17.90185423,174.48,174.4,31.73386976]
[1747581945233,17.90185423,174.48,174.43,17.90185423]
[1747581945646,17.90185423,174.49,174.44,17.90185423]
[1747581946356,23.63257843,174.5,174.45,17.90185423]
[1747581946641,17.90185423,174.49,174.44,17.90185423]
[1747581946939,17.90185423,174.5,174.45,17.90185423]
[1747581947328,17.90185423,174.49,174.44,17.90185423]
[1747581948245,23.63382717,174.46,174.41,17.90185423]
[1747581950924,17.90185423,174.44,174.39,17.90185423]
[1747581951126,17.90185423,174.43,174.38,17.90185423]
[1747581952131,17.90185423,174.44,174.4,17.90185423]
[1747581952454,5.73139482,174.48,174.42,17.90185423]
[1747581952647,17.90185423,174.47,174.43,17.90185423]
[1747581952826,5.73139482,174.48,174.43,17.90185423]
[1747581953149,23.63324905,174.48,174.43,17.90185423]
[1747581953337,17.90185423,174.47,174.43,17.90185423]
[1747581953654,17.90185423,174.46,174.41,17.90185423]
[1747581954234,17.90185423,174.45,174.4,17.90185423]
[1747581954436,5.73193289,174.47,174.39,23.63608424]
[1747581954638,5.73193289,174.47,174.4,17.90185423]
[1747581954639,17.90185423,174.45,174.4,17.90185423]
[1747581955537,17.90185423,174.44,174.39,23.63608424]
[1747581955852,17.90185423,174.45,174.4,17.90185423]
[1747581956763,17.90185423,174.44,174.39,23.63608424]
[1747581957059,17.90185423,174.44,174.39,17.90185423]
[1747581957224,17.90185423,174.43,174.38,23.63638444]
[1747581957750,23.63482203,174.43,174.38,17.90185423]
[1747581957930,17.90185423,174.44,174.39,17.90185423]
[1747581958518,17.90185423,174.45,174.4,17.90185423]
[1747581959227,17.90185423,174.44,174.39,17.90185423]
[1747581959938,23.63456152,174.44,174.39,17.90185423]
[1747581960249,17.90185423,174.43,174.37,49.63670092]
[1747581960460,17.90185423,174.41,174.36,23.63703737]
[1747581960639,17.90185423,174.41,174.34,6.1169]
[1747581960640,17.90185423,174.39,174.34,17.90185423]
[1747581961149,17.90185423,174.4,174.34,17.90185423]
[1747581961326,17.90185423,174.4,174.35,17.90185423]
[1747581961944,17.90185423,174.42,174.37,17.90185423]
[1747581962141,41.3523,174.44,174.38,17.90185423]
[1747581962142,17.90185423,174.43,174.38,17.90185423]
[1747581962552,19.88,174.44,174.4,17.90185423]
[1747581962745,17.90185423,174.45,174.4,17.90185423]
[1747581963137,17.90185423,174.45,174.35,20.07434774]
[1747581963138,17.90185423,174.43,174.38,17.90185423]
[1747581965164,17.90185423,174.42,174.38,5.73450938]
[1747581965664,17.90185423,174.43,174.38,23.63636361]
[1747581966071,17.90185423,174.45,174.4,17.90185423]
[1747581967274,17.90185423,174.45,174.39,17.90185423]
[1747581967770,17.90185423,174.45,174.37,14.33700088]
[1747581967771,17.90185423,174.46,174.41,17.90185423]
[1747581967979,17.90185423,174.47,174.42,17.90185423]
[1747581968969,19.88,174.49,174.44,17.90185423]
[1747581969169,17.90185423,174.5,174.44,17.90185423]
[1747581969484,17.63693735,174.51,174.44,23.63434351]
[1747581969642,17.90185423,174.5,174.45,17.90185423]
[1747581971376,17.63693735,174.51,174.48,5.73131591]
[1747581971580,17.63693735,174.51,174.48,23.63317014]
[1747581971798,37.78185423,174.54,174.49,17.90185423]
[1747581971952,17.90185423,174.53,174.48,23.63317014]
[1747581972147,116.95748211,174.56,174.49,17.90185423]
[1747581972354,17.90185423,174.55,174.5,17.90185423]
[1747581972585,17.90185423,174.54,174.49,17.90185423]
[1747581973081,4.08706682,174.56,174.51,17.90185423]
[1747581973268,21.98892105,174.56,174.51,17.90185423]
[1747581973975,4.08706682,174.56,174.51,17.90185423]
[1747581974180,17.90185423,174.55,174.5,23.63233882]
[1747581974860,17.90185423,174.55,174.5,17.90185423]
[1747581975277,5.72875333,174.56,174.49,17.90185423]
[1747581975585,17.90185423,174.55,174.49,23.63270082]
[1747581975773,17.90185423,174.54,174.49,23.63270082]
[1747581975976,17.90185423,174.52,174.44,6.115]
[1747581976153,17.90185423,174.51,174.46,17.90185423]
[1747581976360,17.90185423,174.53,174.48,17.90185423]
[1747581976569,17.90185423,174.54,174.5,17.90185423]
[1747581976773,17.90185423,174.54,174.49,17.90185423]
[1747581977471,17.90185423,174.52,174.47,17.90185423]
[1747581978483,5.72925079,174.55,174.48,23.63317014]
[1747581978787,17.90185423,174.53,174.48,23.63317014]
[1747581980994,17.90185423,174.55,174.5,17.90185423]
[1747581981175,17.90185423,174.56,174.51,17.90185423]
[1747581981483,17.90185423,174.57,174.52,17.90185423]
[1747581982169,17.90185423,174.56,174.51,17.90185423]
[1747581982767,17.90185423,174.56,174.51,23.63212769]
[1747581984582,5.7286752,174.57,174.51,23.63212769]
[1747581984785,17.90185423,174.56,174.51,23.63212769]
[1747581985463,23.63058561,174.56,174.51,17.90185423]
[1747581985886,17.90185423,174.56,174.51,23.63214129]
[1747581986591,5.72843661,174.57,174.51,23.63214129]
[1747581986769,17.90185423,174.56,174.51,23.63214129]
[1747581986968,5.72809052,174.58,174.52,17.90185423]
[1747581987291,17.90185423,174.62,174.57,17.90185423]
[1747581988160,17.90185423,174.62,174.52,1.14589208]
[1747581988492,23.62890308,174.61,174.56,17.90185423]
[1747581988990,17.90185423,174.59,174.54,17.90185423]
[1747581989175,17.90185423,174.56,174.52,5.72990342]
[1747581989584,17.90185423,174.56,174.51,19.54145423]
[1747581990474,17.90185423,174.57,174.52,23.63160468]
[1747581991292,5.72677595,174.62,174.56,17.90185423]
[1747581991478,23.62863018,174.62,174.57,17.90185423]
[1747581991683,17.90185423,174.62,174.57,17.90185423]
[1747581991994,17.90185423,174.63,174.58,17.90185423]
[1747581992184,17.90185423,174.62,174.57,17.90185423]
[1747581992384,27.98577848,174.65,174.58,17.90185423]
[1747581992703,17.90185423,174.62,174.58,5.72786383]
[1747581993003,17.90185423,174.61,174.57,5.72828777]
[1747581993287,17.90185423,174.62,174.57,23.630142]
[1747581994377,17.90185423,174.61,174.56,17.90185423]
[1747581994577,17.90185423,174.6,174.55,17.90185423]
[1747581994774,17.90185423,174.59,174.54,24.42595423]
[1747581995103,17.90185423,174.58,174.53,23.63148174]
[1747581995473,17.90185423,174.57,174.52,17.90185423]
[1747581995667,17.90185423,174.56,174.51,7.36986314]
[1747581995892,17.90185423,174.56,174.51,25.27171737]
[1747581996100,17.90185423,174.56,174.51,7.36986314]
[1747581996284,17.90185423,174.56,174.51,25.27171737]
[1747581996488,17.90185423,174.55,174.49,30.15664425]
[1747581996793,17.90185423,174.55,174.49,23.63254425]
[1747581997018,17.90185423,174.55,174.5,17.90185423]
[1747581997201,17.90185423,174.57,174.52,17.90185423]
[1747581999502,17.90185423,174.57,174.52,23.6315898]
[1747582001494,26.0,174.59,174.49,14.32746862]
[1747582001495,17.90185423,174.59,174.54,17.90185423]
[1747582001696,8.1491,174.65,174.57,17.90185423]
[1747582001887,17.90185423,174.62,174.57,17.90185423]
[1747582002208,17.90185423,174.62,174.54,5.72911674]
[1747582002400,17.90185423,174.62,174.57,17.90185423]
[1747582002793,17.90185423,174.62,174.57,5.72836111]
[1747582002993,17.90185423,174.61,174.57,5.72836111]
[1747582003204,17.90185423,174.61,174.56,23.6304893]
[1747582005825,17.90185423,174.6,174.55,17.90185423]
[1747582006004,17.90185423,174.58,174.54,23.63093696]
[1747582006314,17.90185423,174.59,174.54,23.63093696]
[1747582008214,5.72747785,174.6,174.54,23.63093696]
[1747582008411,5.72747785,174.6,174.55,17.90185423]
[1747582008412,17.90185423,174.6,174.55,17.90185423]
[1747582009614,17.90185423,174.6,174.55,23.63072084]
[1747582009913,17.90185423,174.58,174.53,17.90185423]
[1747582010115,17.90185423,174.56,174.52,5.72989616]
[1747582010299,17.90185423,174.57,174.52,23.63175039]
[1747582011911,17.90185423,174.55,174.5,17.90185423]
[1747582013002,17.90185423,174.55,174.5,23.63219019]
[1747582013706,17.90185423,174.54,174.49,17.90185423]
[1747582013903,17.90185423,174.53,174.48,23.632888]
[1747582015403,17.90185423,174.53,174.47,1.5973]
[1747582015599,17.90185423,174.52,174.47,25.23071295]
[1747582016208,17.90185423,174.53,174.48,17.90185423]
[1747582016695,17.90185423,174.53,174.47,5.73155872]
[1747582016895,17.90185423,174.52,174.47,23.63341295]
[1747582017623,17.90185423,174.52,174.44,40.65422667]
[1747582017624,17.90185423,174.49,174.44,17.90185423]
[1747582018119,17.90185423,174.46,174.41,23.63547042]
[1747582018826,17.90185423,174.46,174.41,17.90185423]
[1747582019130,17.90185423,174.46,174.41,23.63536035]
[1747582019300,17.90185423,174.46,174.41,5.73350612]
[1747582019539,17.90185423,174.45,174.41,5.73350612]
[1747582020718,17.90185423,174.44,174.39,7.32980252]
[1747582021113,17.90185423,174.44,174.4,17.90185423]
[1747582021331,17.90185423,174.45,174.4,17.90185423]
[1747582022118,26.0,174.48,174.39,7.32980252]
[1747582022119,17.90185423,174.46,174.41,17.90185423]
[1747582022326,19.8,174.54,174.45,17.90185423]
[1747582022622,17.90185423,174.5,174.45,17.90185423]
[1747582022826,17.90185423,174.49,174.44,23.63444297]
[1747582023220,17.90185423,174.49,174.44,5.73258874]
[1747582023423,17.90185423,174.49,174.44,23.63444297]
[1747582023613,17.90185423,174.5,174.45,17.90185423]
[1747582024123,17.90185423,174.49,174.44,23.63444297]
[1747582025323,17.90185423,174.51,174.46,17.90185423]
[1747582026205,17.90185423,174.5,174.45,17.90185423]
[1747582026613,17.90185423,174.5,174.45,5.73221243]
[1747582026814,17.90185423,174.5,174.45,23.63406666]
[1747582027012,17.90185423,174.51,174.46,17.90185423]
[1747582027436,45.8,174.54,174.47,17.90185423]
[1747582027730,17.90185423,174.52,174.47,17.90185423]
[1747582028144,26.0,174.45,174.42,1.14621769]
[1747582028433,26.0,174.45,174.34,23.63777255]
[1747582028434,23.63512053,174.43,174.34,23.63777255]
[1747582028606,17.90185423,174.4,174.34,23.63777255]
[1747582028796,5.7332663,174.43,174.34,23.63777255]